fUST/lending_fUST_20260219
["ID","MTS","AMOUNT","RATE_DAILY","PERIOD"]
[405967117,1771471840851,-200.32351024,0.00026658,110]
[405967119,1771471840859,-337.51,0.000267,14]
[405967121,1771471840868,-159.76,0.00026968,2]
[405967123,1771471840877,-1153.17866869,0.00027,2]
[405967125,1771471840886,-891.11354073,0.00027065,7]
[405967127,1771471840895,-160.0,0.0002715,7]
[405967129,1771471840904,-213.36114185,0.00027196,120]
[405967131,1771471840913,-168.0,0.00027214,2]
[405967133,1771471840922,-168.0,0.00027354,2]
[405967135,1771471840931,-168.0,0.00027382,2]
[405967137,1771471840940,-167.99328118,0.0002739,120]
[405967138,1771471840949,-5859.68788134,0.0002739,2]
[405967140,1771471840959,-167.821822,0.00027397,2]
[405967143,1771471840968,-151.0,0.000274,15]
[405967145,1771471840979,-151.0,0.000274,20]
[405967147,1771471840988,-135849.14,0.000274,2]
[405967149,1771471840998,-3794.11,0.000275,2]
[405967150,1771471841008,-168.0,0.00027541,2]
[405967153,1771471841017,-151.0,0.000277,12]
[405967154,1771471841026,-592.121,0.0002777,2]
[405967156,1771471841035,-635.0,0.0002777,2]
[405967159,1771471841048,-427.0,0.0002777,2]
[405967160,1771471841057,-725.0,0.0002777,2]
[405967163,1771471841066,-181.0,0.0002777,2]
[405967164,1771471841075,-168.0,0.00027781,2]
[405967167,1771471841084,-151.0,0.000278,16]
[405967168,1771471841093,-168.0,0.00027985,2]
[405967171,1771471841102,-337.51,0.00028,14]
[405967172,1771471841111,-1953.22929378,0.00028053,2]
[405967174,1771471841120,-800.0,0.00028067,2]
[405967177,1771471841129,-168.0,0.00028101,2]
[405967178,1771471841138,-417.95296067,0.00028174,2]
[405967181,1771471841147,-151.0,0.000282,14]
[405967183,1771471841157,-151.0,0.000282,19]
[405967184,1771471841167,-151.0,0.000282,10]
[405967187,1771471841176,-168.0,0.00028251,2]
[405967188,1771471841185,-168.0,0.00028313,2]
[405967191,1771471841194,-160.0,0.00028438,8]
[405967193,1771471841203,-166.64035623,0.00028438,5]
[405967195,1771471841212,-4693.24682998,0.0002853,2]
[405967196,1771471841222,-711.85277027,0.0002853,2]
[405967198,1771471841231,-168.0,0.00028582,7]
[405967200,1771471841241,-3794.11,0.000286,2]
[405967202,1771471841251,-168.0,0.00028613,2]
[405967205,1771471841260,-3906.45858756,0.0002869,2]
[405967207,1771471841270,-19147.07009722,0.00028765,5]
[405967208,1771471841279,-168.0,0.00028787,2]
[405967210,1771471841289,-10603.2234269,0.00028806,2]
[405967213,1771471841298,-722858.50336968,0.00028818,2]
[405968101,1771471938946,-2398.4614882,0.00013562,2]
[405968127,1771473031885,-440.41335325,0.00012142,2]
[405968129,1771473031897,-608.32336381,0.00012142,2]
[405968131,1771473031908,-1349.72477114,0.00012142,2]
[405968133,1771473031919,-277.50695083,0.00012203,2]
[405968135,1771473031928,-160.65423686,0.00012265,2]
[405968137,1771473031937,-500.0,0.00013754,2]
[405968139,1771473031947,-576.42363036,0.00013754,2]
[405968141,1771473031956,-1661.10436037,0.00014175,2]
[405968143,1771473031966,-1200.0,0.00014245,2]
[405968145,1771473031975,-300.0,0.00014792,2]
[405968147,1771473031984,-300.0,0.00014793,2]
[405968149,1771473031993,-300.0,0.00014793,2]
[405968152,1771473032006,-300.0,0.00014793,2]
[405968154,1771473032016,-994.07463534,0.00014794,2]
[405968156,1771473032026,-300.0,0.00014794,2]
[405968158,1771473032035,-300.0,0.00014794,2]
[405968160,1771473032044,-596.89001936,0.00015098,2]
[405968161,1771473032054,-768.76944873,0.00015101,2]
[405968163,1771473032063,-566.343997,0.00015304,2]
[405968165,1771473032072,-542.84855928,0.00015331,2]
[405968167,1771473032082,-441.87,0.000156,10]
[405968169,1771473032091,-1417.33813857,0.000156,7]
[405968172,1771473032102,-896.30572574,0.000156,7]
[405968174,1771473032114,-392.54,0.000156,7]
[405968176,1771473032125,-657.4015548,0.000156,7]
[405968178,1771473032136,-950.16094511,0.000156,7]
[405968180,1771473032147,-1136.71363578,0.000156,7]
[405968182,1771473032156,-3302.79798645,0.00015697,2]
[405968184,1771473032165,-4944.49161253,0.0001722,2]
[405968186,1771473032175,-250.0,0.00018475,2]
[405968188,1771473032184,-250.0,0.00018475,2]
[405968190,1771473032193,-500.0,0.00018475,2]
[405968192,1771473032203,-500.0,0.00018475,2]
[405968194,1771473032212,-500.0,0.00018475,2]
[405968196,1771473032222,-189.24398927,0.00018475,2]
[405968198,1771473032231,-308.77255254,0.00020163,2]
[405968200,1771473032241,-505.47570426,0.00020164,2]
[405968263,1771473037958,-1959.17893914,0.00020164,2]
[405968264,1771473037968,-2861.34076918,0.00020264,2]
[405968265,1771473037979,-1325.55720638,0.00020264,2]
[405968266,1771473038012,-2044.8306847,0.00020264,2]
[405968267,1771473038021,-743.60641596,0.00021728,2]
[405968268,1771473038031,-6586.18523861,0.00021787,2]
[405968269,1771473038041,-150.0,0.00023035,2]
[405968270,1771473038050,-150.0,0.00023035,2]
[405968271,1771473038060,-150.0,0.0002309,2]
[405968272,1771473038069,-150.0,0.0002309,2]
[405968273,1771473038078,-223.83470682,0.00023145,2]
[405968274,1771473038088,-286.89745474,0.00023145,2]
[405968275,1771473038098,-2464.65464339,0.00023146,2]
[405968276,1771473038107,-7276.44278594,0.00023309,2]
[405968277,1771473038116,-158.38337065,0.00024378,2]
[405968278,1771473038126,-157.32340499,0.00024378,2]
[405968279,1771473038135,-150.0,0.00024378,2]
[405968280,1771473038145,-150.0,0.00024378,2]
[405968281,1771473038154,-150.0,0.00024433,2]
[405968282,1771473038163,-150.0,0.00024433,2]
[405968283,1771473038172,-214.74427437,0.00024488,2]
[405968284,1771473038182,-216.97167638,0.00024488,2]
[405968285,1771473038193,-427.0,0.00024652,2]
[405968286,1771473038202,-204.189,0.00024652,2]
[405968287,1771473038212,-195.509,0.00024652,2]
[405968288,1771473038222,-225.81273484,0.00024809,2]
[405968289,1771473038231,-406.46292272,0.00024809,2]
[405968290,1771473038241,-721.87815075,0.00024809,2]
[405968291,1771473038250,-176.38993087,0.00024881,2]
[405968292,1771473038260,-249.99,0.000257,7]
[405968293,1771473038269,-505.0,0.00025883,10]
[405968294,1771473038278,-155.58904004,0.00025969,2]
[405968295,1771473038288,-161.12525414,0.00025969,2]
[405968296,1771473038297,-276.49680737,0.00025969,2]
[405968297,1771473038306,-2464.65464339,0.00026129,2]
[405968298,1771473038316,-168.0,0.00026243,2]
[405968299,1771473038326,-8321.15691163,0.00026353,9]
[405968300,1771473038336,-201.314428,0.00026549,2]
[405968301,1771473038345,-168.0,0.00026815,2]
[405968302,1771473038354,-590.6121411,0.0002712,7]
[405968303,1771473038364,-181.0,0.00027652,2]
[405968304,1771473038374,-4865.07008605,0.00027876,14]
[405968324,1771473044246,-2787.97107083,0.00027876,14]
[405968325,1771473044927,-1712.82988044,0.00027876,14]
[405968326,1771473044936,-379.0,0.00027876,10]
[405968327,1771473044946,-882.24935744,0.00028,5]
[405968328,1771473044955,-168.0,0.000281,2]
[405968329,1771473044966,-168.0,0.00028607,2]
[405968330,1771473044975,-420.0,0.00028718,3]
[405968331,1771473044984,-168.0,0.00028781,2]
[405968332,1771473044994,-4030.50904383,0.00028818,2]
[405968333,1771473045005,-4778.53005722,0.00028818,2]
[405968354,1771473045929,-401.98366434,0.00028818,2]
[405968363,1771473738551,-447.65757071,0.00013699,2]
[405968381,1771474232057,-500.0,0.00013699,2]
[405968383,1771474232066,-580.83721449,0.00013835,2]
[405968386,1771474232076,-272.00799618,0.00013835,2]
[405968387,1771474232084,-1000.0,0.00014247,2]
[405968390,1771474232095,-1319.82664801,0.00014795,2]
[405968392,1771474232105,-300.0,0.00016163,2]
[405968393,1771474232115,-300.0,0.00016163,2]
[405968396,1771474232124,-300.0,0.00016163,2]
[405968398,1771474232133,-300.0,0.00016163,2]
[405968399,1771474232144,-1200.0,0.00016163,2]
[405968402,1771474232154,-500.0,0.00016164,2]
[405968403,1771474232163,-500.0,0.00016164,2]
[405968405,1771474232173,-500.0,0.00016164,2]
[405968407,1771474232182,-500.0,0.00016164,2]
[405968410,1771474232192,-500.0,0.00016164,2]
[405968412,1771474232202,-500.0,0.00016164,2]
[405968414,1771474232211,-500.0,0.00016164,2]
[405968416,1771474232223,-367.62919337,0.00016164,2]
[405968417,1771474232232,-500.0,0.00016164,2]
[405968420,1771474232242,-500.0,0.00016164,2]
[405968422,1771474232251,-405.86875911,0.00016164,2]
[405968424,1771474232261,-500.0,0.00016164,2]
[405968426,1771474232271,-500.0,0.00016164,2]
[405968428,1771474232280,-500.0,0.00016164,2]
[405968430,1771474232291,-477.08249426,0.00016164,2]
[405968431,1771474232299,-500.0,0.00016164,2]
[405968433,1771474232308,-500.0,0.00016164,2]
[405968435,1771474232317,-500.0,0.00016164,2]
[405968437,1771474232326,-500.0,0.00016164,2]
[405968439,1771474232334,-470.78561003,0.00016164,2]
[405968441,1771474232343,-500.0,0.00016164,2]
[405968443,1771474232352,-500.0,0.00016164,2]
[405968445,1771474232361,-213.75595222,0.00016164,2]
[405968447,1771474232370,-500.0,0.00016164,2]
[405968449,1771474232379,-2495.58251776,0.00016165,2]
[405968764,1771474240460,-1573.28918733,0.00016165,2]
[405969350,1771474246170,-492.56,0.00016165,2]
[405969862,1771475438363,-487.5601637,0.00015411,2]
[405969863,1771475438373,-1828.91708745,0.00015534,2]
[405969864,1771475438416,-843.19859868,0.00015534,2]
[405969871,1771475446395,-424.63420293,0.00015534,2]
[405969872,1771475446405,-300.0,0.00016387,2]
[405969873,1771475446414,-274.53173445,0.00016387,2]
[405969874,1771475446424,-579.30621691,0.00016387,2]
[405969875,1771475446433,-156.2076399,0.00016387,2]
[405969876,1771475446442,-1561.99347595,0.00016388,2]
[405969877,1771475446453,-3948.15746409,0.00016388,2]
[405969878,1771475446462,-300.0,0.00016388,2]
[405969879,1771475446472,-300.0,0.00016388,2]
[405969880,1771475446481,-300.0,0.00016388,2]
[405969881,1771475446490,-300.0,0.00016388,2]
[405969882,1771475446500,-300.0,0.00016388,2]
[405969883,1771475446509,-300.0,0.00016388,2]
[405969884,1771475446519,-300.0,0.00016388,2]
[405969885,1771475446527,-300.0,0.00016388,2]
[405969886,1771475446536,-300.0,0.00016388,2]
[405969887,1771475446546,-300.0,0.00016388,2]
[405969888,1771475446555,-300.0,0.00016388,2]
[405969889,1771475446564,-300.0,0.00016388,2]
[405969890,1771475446575,-300.0,0.00016388,2]
[405969891,1771475446586,-300.0,0.00016388,2]
[405969892,1771475446596,-300.0,0.00016388,2]
[405969893,1771475446606,-600.0,0.00016489,2]
[405969894,1771475446615,-824.0694931,0.00016491,2]
[405969896,1771475557547,-1097.56625778,0.00016326,2]
[405969922,1771476632409,-1097.56625778,0.00015324,2]
[405969924,1771476632418,-66.21515259,0.00015447,2]
[405969926,1771476632430,-2380.81606849,0.00015447,2]
[405969928,1771476632440,-269.36672853,0.00015512,2]
[405969930,1771476632449,-248.44647,0.00015672,2]
[405969932,1771476632459,-1000.0,0.00015922,2]
[405969934,1771476632468,-4854.1449149,0.00016187,2]
[405969936,1771476632477,-804.0497925,0.00016192,2]
[405969938,1771476632487,-500.0,0.00016541,2]
[405969940,1771476632496,-500.0,0.00016541,2]
[405969942,1771476632505,-160.58921245,0.00016541,2]
[405969944,1771476632514,-3679.688516,0.00016543,2]
[405969946,1771476632526,-1064.37392627,0.00016543,2]
[405969948,1771476632535,-159.60597328,0.0001665,2]
[405969997,1771476646522,-2200.74561045,0.0001665,2]
[405970024,1771477831532,-435.0732351,0.00015941,2]
[405970026,1771477831541,-264.13996601,0.00015973,2]
[405970027,1771477831551,-300.78679889,0.00016069,2]
[405970030,1771477831562,-1799.41077334,0.00016069,2]
[405970052,1771477837821,-246.29438885,0.00016069,2]
[405970053,1771477837831,-1324.7797769,0.00016191,2]
[405970054,1771477837842,-373.16049286,0.00016521,2]
[405970055,1771477837851,-487.0,0.00016648,2]
[405970056,1771477837861,-300.0,0.00016649,2]
[405970057,1771477837871,-626.49439783,0.00016649,2]
[405970058,1771477837881,-151.0,0.0001665,2]
[405970059,1771477837890,-9409.79875057,0.0001665,2]
[405970060,1771477837899,-158.155989,0.00016782,2]
[405970061,1771477837908,-1841.54973034,0.00017,2]
[405970062,1771477837918,-154.584857,0.00017066,2]
[405970063,1771477837927,-1000.0,0.00017067,2]
[405970064,1771477837936,-1000.0,0.00017067,2]
[405970065,1771477837947,-1000.0,0.00017067,2]
[405970066,1771477837958,-1000.0,0.00017067,2]
[405970067,1771477837967,-1000.0,0.00017067,2]
[405970068,1771477837976,-1000.0,0.00017067,2]
[405970069,1771477837986,-1000.0,0.00017067,2]
[405970070,1771477837996,-1000.0,0.00017067,2]
[405970071,1771477838005,-1000.0,0.00017067,2]
[405970072,1771477838015,-1000.0,0.00017067,2]
[405970073,1771477838026,-1000.0,0.00017067,2]
[405970074,1771477838036,-446.053695,0.00017067,2]
[405970075,1771477838046,-4542.98392226,0.00017072,2]
[405970076,1771477838056,-1540.40915218,0.000171,2]
[405970077,1771477838066,-12816.0,0.000172,2]
[405970078,1771477838075,-164.68007,0.000172,2]
[405970079,1771477838085,-16913.84104179,0.0001734,2]
[405970080,1771477838095,-3267.0,0.00018111,5]
[405970081,1771477838105,-4638.48357264,0.00018304,2]
[405970082,1771477838115,-153.44964866,0.00018423,2]
[405970083,1771477838130,-225.65612123,0.00018423,2]
[405970084,1771477838140,-406.18101822,0.00018423,2]
[405970085,1771477838149,-721.37748836,0.00018423,2]
[405970086,1771477838159,-583.34084791,0.00018521,2]
[405970087,1771477838168,-600.0,0.00019228,2]
[405970088,1771477838178,-4924.98252409,0.00019535,2]
[405970089,1771477838188,-240.88580081,0.00020196,2]
[405970090,1771477838197,-275.02276001,0.00020196,2]
[405970091,1771477838207,-366.03372479,0.00020196,2]
[405970092,1771477838217,-1540.40915211,0.00020521,2]
[405970093,1771477838226,-233.93093463,0.00020738,7]
[405970094,1771477838235,-166.04998819,0.00020738,7]
[405970095,1771477838245,-5306.98112601,0.00020767,2]
[405970096,1771477838254,-150.0,0.00020985,2]
[405970097,1771477838263,-720.0,0.00021151,10]
[405970098,1771477838274,-506.75861086,0.00021259,2]
[405970099,1771477838283,-181.001,0.00021983,2]
[405970100,1771477838297,-5688.97972794,0.00021998,2]
[405970101,1771477838306,-3794.83861622,0.000232,10]
[405970102,1771477840016,-161.21138378,0.000232,10]
[405970103,1771477840026,-510.47556621,0.000232,10]
[405970109,1771477845655,-961.48188441,0.000232,10]
[405970110,1771477845820,-1824.75254938,0.000232,10]
[405970111,1771477845830,-3031.02718423,0.0002321,10]
[405970112,1771477846194,-441.94281577,0.0002321,10]
[405970113,1771477846203,-2009.44605227,0.0002323,2]
[405970114,1771477846320,-4061.5322776,0.0002323,2]
[405970115,1771477846332,-150.0,0.00023233,2]
[405970116,1771477846342,-150.0,0.00023233,2]
[405970117,1771477846353,-150.0,0.00023233,2]
[405970118,1771477846364,-864.0,0.00023266,10]
[405970119,1771477846375,-150.0,0.00023288,2]
[405970120,1771477846386,-150.0,0.00023288,2]
[405970121,1771477846396,-150.0,0.00023288,2]
[405970122,1771477846407,-150.0,0.00023343,2]
[405970123,1771477846418,-200.0,0.00023343,2]
[405970124,1771477846428,-200.0,0.00023343,2]
[405970125,1771477846437,-215.16705629,0.00023397,2]
[405970126,1771477846446,-150.0,0.00023506,10]
[405970127,1771477846456,-150.0,0.00023506,10]
[405970128,1771477846465,-150.0,0.00023506,10]
[405970129,1771477846473,-248.44647,0.00023507,2]
[405970130,1771477846483,-296.17870997,0.00023561,10]
[405970131,1771477846491,-150.0,0.00023561,10]
[405970132,1771477846500,-150.0,0.00023561,10]
[405970133,1771477846509,-200.0,0.00023616,10]
[405970134,1771477846518,-150.0,0.00023616,10]
[405970135,1771477846527,-1483.3626941,0.00023941,2]
[405970196,1771479038043,-1408.18218896,0.00017,2]
[405970202,1771479040206,-580.56103853,0.00017,2]
[405970203,1771479040217,-2394.40417895,0.00017,2]
[405970204,1771479040226,-2032.93933705,0.00017136,2]
[405970205,1771479040235,-3915.8786742,0.0001812,2]
[405970206,1771479040244,-500.0,0.00019055,2]
[405970207,1771479040253,-478.47266396,0.00019055,2]
[405970208,1771479040262,-500.0,0.00019055,2]
[405970209,1771479040270,-500.0,0.00019055,2]
[405970210,1771479040279,-579.19830697,0.00019055,2]
[405970211,1771479040288,-500.0,0.00019055,2]
[405970212,1771479040297,-500.0,0.00019055,2]
[405970213,1771479040306,-500.0,0.00019055,2]
[405970214,1771479040314,-500.0,0.00019055,2]
[405970215,1771479040323,-519.06403583,0.00019056,10]
[405970242,1771479045558,-916.51108925,0.00019056,10]
[405970271,1771479045902,-3720.42487492,0.00019056,10]
[405970272,1771479045914,-262.11730353,0.00019081,2]
[405970273,1771479045926,-300.0,0.00019156,2]
[405970274,1771479045936,-109.02037753,0.0001934,2]
[405970288,1771479180299,1820.9,0.00014,30]
[405970326,1771480238241,-590.7580099,0.00020041,2]
[405970327,1771480238251,-500.0,0.00020135,2]
[405970328,1771480238263,-1349.45985338,0.00020201,2]
[405970342,1771480245046,-675.34899778,0.00020201,2]
[405970343,1771480245056,-1946.9761735,0.00020342,2]
[405970344,1771480245065,-187.405282,0.00020528,2]
[405970345,1771480245075,-155.6057987,0.00020878,2]
[405970346,1771480245084,-500.0,0.00021045,2]
[405970347,1771480245093,-484.0,0.00021054,2]
[405970348,1771480245102,-3462.17437735,0.00021055,2]
[405970349,1771480245113,-437.44332508,0.00021055,2]
[405970350,1771480245122,-99.13028697,0.00021136,2]
[405970354,1771480246084,-200.86971303,0.00021136,2]
[405970355,1771480246094,-299.13028697,0.00021136,2]
[405970445,1771480938235,-296.8657816,0.00016438,2]
[405970446,1771480938264,-2247.84827764,0.0001657,2]
[405970447,1771480938288,-296.8657816,0.00017469,2]
[405970448,1771480938299,-2247.84827764,0.00017469,2]
[405970449,1771480938317,-931.65504216,0.00017469,2]
[405970494,1771481438363,-689.75322139,0.00017468,2]
[405970496,1771481438374,-248.12753435,0.00017645,2]
[405970498,1771481438384,-2202.93519345,0.00017696,2]
[405970499,1771481438394,-1228.91453122,0.00018324,2]
[405970562,1771481446340,-28.32578008,0.00018324,2]
[405970564,1771481446349,-4255.870387,0.00018616,2]
[405970566,1771481446360,-500.0,0.00018918,2]
[405970567,1771481446371,-500.0,0.00019371,2]
[405970568,1771481446380,-4037.5672102,0.00019775,2]
[405970569,1771481446451,-307.56122859,0.00019775,2]
[405970570,1771481446460,-147.37084341,0.00019998,2]
[405970571,1771481446490,-250.31785736,0.00019998,2]
[405970572,1771481446499,-492.544264,0.00019998,2]
[405970573,1771481446508,-1021.78789828,0.00019999,2]
[405970574,1771481446519,-676.03372964,0.00019999,2]
[405970863,1771482640818,-865.78935925,0.00015,2]
[405970864,1771482640828,-263.32630165,0.00015095,2]
[405970865,1771482640837,-1213.06652806,0.0001519,2]
[405970866,1771482640848,-126.76542142,0.0001519,2]
[405970867,1771482640857,-2529.66389911,0.00016485,2]
[405970868,1771482640866,-1311.7066468,0.00017,2]
[405970869,1771482640876,-465.7033787,0.0001742,2]
[405970870,1771482640885,-1200.0,0.00017779,2]
[405970871,1771482640894,-2581.39572286,0.0001778,2]
[405970872,1771482640903,-500.0,0.0001799,2]
[405970873,1771482640913,-300.0,0.00018099,2]
[405970874,1771482640923,-398.722045,0.000181,2]
[405970875,1771482640932,-511.569708,0.00018102,2]
[405970876,1771482640941,-500.0,0.00018447,2]
[405970878,1771482640950,-755.27928434,0.00018645,2]
[405970879,1771482640959,-501.99671636,0.00018645,2]
[405970880,1771482640968,-587.81749739,0.00018853,2]
[405971049,1771482646503,-17.45250261,0.00018853,2]
[405971051,1771482646513,-2736.59119453,0.00019075,2]
[405971053,1771482646522,-500.0,0.0001915,2]
[405971054,1771482646532,-500.0,0.0001915,2]
[405971056,1771482646541,-500.0,0.0001915,2]
[405971058,1771482646550,-500.0,0.0001915,2]
[405971059,1771482646559,-500.0,0.0001915,2]
[405971061,1771482646568,-500.0,0.0001915,2]
[405971063,1771482646577,-500.0,0.0001915,2]
[405971065,1771482646603,-500.0,0.0001915,2]
[405971066,1771482646621,-500.0,0.0001915,2]
[405971067,1771482646630,-500.0,0.0001915,2]
[405971068,1771482646639,-500.0,0.0001915,2]
[405971069,1771482646648,-500.0,0.0001915,2]
[405971070,1771482646658,-500.0,0.0001915,2]
[405971071,1771482646667,-396.29666553,0.0001915,2]
[405971072,1771482646676,-500.0,0.0001915,2]
[405971073,1771482646686,-429.81050396,0.0001915,2]
[405971074,1771482646695,-500.0,0.0001915,2]
[405971075,1771482646704,-500.0,0.0001915,2]
[405971076,1771482646714,-500.0,0.0001915,2]
[405971077,1771482646723,-500.0,0.0001915,2]
[405971078,1771482646732,-500.0,0.0001915,2]
[405971079,1771482646741,-437.04102851,0.0001915,2]
[405971080,1771482646751,-500.0,0.0001915,2]
[405971081,1771482646763,-500.0,0.0001915,2]
[405971082,1771482646772,-500.0,0.0001915,2]
[405971083,1771482646782,-500.0,0.0001915,2]
[405971084,1771482646791,-500.0,0.0001915,2]
[405971085,1771482646802,-500.0,0.0001915,2]
[405971086,1771482646811,-500.0,0.0001915,2]
[405971087,1771482646820,-500.0,0.0001915,2]
[405971088,1771482646830,-500.0,0.0001915,2]
[405971089,1771482646839,-376.10134545,0.0001915,2]
[405971090,1771482646849,-500.0,0.0001915,2]
[405971091,1771482646863,-500.0,0.0001915,2]
[405971092,1771482646872,-500.0,0.0001915,2]
[405971093,1771482646882,-500.0,0.0001915,2]
[405971094,1771482646891,-500.0,0.0001915,2]
[405971095,1771482646900,-500.0,0.0001915,2]
[405971096,1771482646909,-500.0,0.0001915,2]
[405971097,1771482646919,-500.0,0.0001915,2]
[405971098,1771482646928,-500.0,0.0001915,2]
[405971099,1771482646937,-500.0,0.0001915,2]
[405971100,1771482646946,-500.0,0.0001915,2]
[405971101,1771482646955,-500.0,0.0001915,2]
[405971102,1771482646964,-500.0,0.0001915,2]
[405971103,1771482646973,-500.0,0.0001915,2]
[405971104,1771482646982,-500.0,0.0001915,2]
[405971105,1771482646991,-500.0,0.0001915,2]
[405971106,1771482647000,-500.0,0.0001915,2]
[405971107,1771482647010,-500.0,0.0001915,2]
[405971108,1771482647019,-500.0,0.0001915,2]
[405971109,1771482647028,-500.0,0.0001915,2]
[405971110,1771482647037,-500.0,0.0001915,2]
[405971111,1771482647047,-500.0,0.0001915,2]
[405971112,1771482647056,-500.0,0.0001915,2]
[405971113,1771482647066,-500.0,0.0001915,2]
[405971114,1771482647074,-500.0,0.0001915,2]
[405971115,1771482647084,-500.0,0.0001915,2]
[405971116,1771482647094,-500.0,0.0001915,2]
[405971117,1771482647103,-476.68073633,0.0001915,2]
[405971118,1771482647115,-500.0,0.0001915,2]
[405971119,1771482647125,-500.0,0.0001915,2]
[405971120,1771482647134,-500.0,0.0001915,2]
[405971121,1771482647143,-500.0,0.0001915,2]
[405971122,1771482647152,-500.0,0.0001915,2]
[405971123,1771482647162,-500.0,0.0001915,2]
[405971124,1771482647171,-500.0,0.0001915,2]
[405971125,1771482647181,-500.0,0.0001915,2]
[405971126,1771482647201,-500.0,0.0001915,2]
[405971127,1771482647218,-500.0,0.0001915,2]
[405971128,1771482647238,-500.0,0.0001915,2]
[405971129,1771482647258,-500.0,0.0001915,2]
[405971130,1771482647276,-500.0,0.0001915,2]
[405971131,1771482647291,-500.0,0.0001915,2]
[405971132,1771482647303,-500.0,0.0001915,2]
[405971133,1771482647316,-500.0,0.0001915,2]
[405971134,1771482647331,-500.0,0.0001915,2]
[405971135,1771482647341,-500.0,0.0001915,2]
[405971136,1771482647353,-500.0,0.0001915,2]
[405971137,1771482647364,-500.0,0.0001915,2]
[405971138,1771482647375,-500.0,0.0001915,2]
[405971139,1771482647384,-500.0,0.0001915,2]
[405971140,1771482647395,-500.0,0.0001915,2]
[405971141,1771482647407,-500.0,0.0001915,2]
[405971142,1771482647417,-500.0,0.0001915,2]
[405971143,1771482647430,-500.0,0.0001915,2]
[405971144,1771482647440,-500.0,0.0001915,2]
[405971145,1771482647453,-500.0,0.0001915,2]
[405971146,1771482647464,-500.0,0.0001915,2]
[405971147,1771482647474,-500.0,0.0001915,2]
[405971148,1771482647484,-500.0,0.0001915,2]
[405971149,1771482647493,-596.74509844,0.0001915,2]
[405971150,1771482647504,-31320.63061667,0.00019151,2]
[405971151,1771482647520,-11343.85050883,0.00019151,2]
[405971159,1771483083126,206.29,4.995e-05,2]
[405971161,1771483539137,-689.75322139,0.00016274,2]
[405971162,1771483539158,-150.0,0.00016356,2]
[405971163,1771483539179,-165.13639911,0.00016438,2]
[405971164,1771483539199,-2100.0,0.00017823,2]
[405971165,1771483539219,-499.7875191,0.00017899,2]
[405971166,1771483539241,-177.0,0.00018356,2]
[405971167,1771483539261,-500.0,0.00018875,2]
[405971168,1771483539281,-251.19222817,0.00018876,2]
[405971169,1771483539300,-151.83426459,0.00018876,2]
[405971170,1771483539466,-150.0,0.00018876,2]
[405971171,1771483539487,-500.0,0.0001893,2]
[405971172,1771483539508,-150.0,0.00018931,2]
[405971173,1771483539529,-155.21615516,0.00018985,2]
[405971174,1771483539549,-150.0,0.00018986,2]
[405971175,1771483539569,-430.0,0.00018999,2]
[405971176,1771483539588,-2290.0,0.00019,6]
[405971177,1771483539607,-195.76,0.00019,2]
[405971178,1771483539628,-199.0,0.00019009,2]
[405971179,1771483539649,-1527.17604176,0.0001901,2]
[405971180,1771483539669,-150.0,0.0001904,2]
[405971181,1771483539687,-500.0,0.00019047,2]
[405971182,1771483539709,-399.63834427,0.00019047,2]
[405971183,1771483539732,-500.0,0.00019047,2]
[405971184,1771483539754,-500.0,0.00019047,2]
[405971185,1771483539777,-500.0,0.00019047,2]
[405971186,1771483539799,-500.0,0.00019047,2]
[405971187,1771483539821,-500.0,0.00019047,2]